Workbook

Sheet Титул
AK2: Утверждаю:
AK3: Директор ______________
AK4: ГБОУ СПО "МППК"
AK5: М.Н. Верхотурцев
AK6: « | AL6: 7 | AN6: » | AO6: июня | AR6: 201 | AT6: 3 | AU6: г
O12: УЧЕБНЫЙ ПЛАН
B13: Государственного бюджетного образовательного учреждения среднего профессионального образования
C14: «Мишкинский профессионально-педагогический колледж»
J15: по специальности среднего профессионального образования
F17: 250401 | L17: Технология деревообработки
J20: по программе базовой подготовки
AA25: Квалификация: | AI25: Техник-технолог
AA28: Форма обучения- | AJ28: очная
AA29: Нормативный срок обучения- | AN29: 3 | AP29: г | AQ29: 10 | AS29: мес
AA30: На базе | AE30: основного общего образования
AA31: Профиль | AF31: технический

Sheet Сводные
A1: Сводные данные по бюджету времени (в неделях)
A3: Курсы | B3: Обучение по дисциплинам и междисциплинарным курсам | C3: Учебная практика | D3: Производственная практика | F3: Промежуточная аттестация | G3: Государственная итоговая аттестация | H3: Каникулы | I3: Всего
D4: по профилю специальности | E4: преддипломная
E5: (для СПО)
A6: 1 | B6: 2 | C6: 3 | D6: 4 | E6: 5 | F6: 6 | G6: 7 | H6: 8 | I6: 9
A7: I курс | B7: =I7-H7-G7-F7-E7-D7-C7 -> 39 | F7: 2 | H7: 11 | I7: 52
A8: II курс | B8: =I8-H8-G8-F8-E8-D8-C8 -> 36 | C8: 4 | F8: 1 | H8: 11 | I8: 52
A9: III курс | B9: 27 | C9: 5 | D9: 8 | F9: 2 | H9: 10 | I9: 52
A10: VI курс | B10: 18 | C10: 3 | D10: 8 | E10: 4 | F10: 2 | G10: 6 | H10: 2 | I10: 43
A11: Всего | B11: =SUM(B7:B10) -> 120 | C11: 12 | D11: 16 | E11: 4 | F11: 7 | G11: 6 | H11: 34 | I11: 199
K12: Удалить строку

Sheet План уч проц
S2: Технич
A3: Индекс | B3: Наименование циклов, дисциплин, профессиональных модулей, МДК, практик | C3: Форма промежуточной аттестации | F3: Учебная нагрузка обучающихся (час.) | L3: Учебная и производственная практика | M3: Распределение обязательной нагрузки по курсам и семестрам[2] (час. в семестр)
F7: максимальная | G7: самостоятельная работа | H7: Обязательная аудиторная | M7: I курс | O7: II курс | Q7: III курс | S7: IV курс
C8: З | D8: ДЗ | E8: Э | H8: всего занятий | I8: в т. ч. | M8: 1 семестр | N8: 2 семестр | O8: 3 семестр | P8: 4 семестр | Q8: 5 семестр | R8: 6 семестр | S8: 7 семестр | T8: 8 семестр
I9: лекций, уроков, семинаров | J9: лаб. и практ. занятий | K9: Курсовая | M9: сем. | N9: сем. | O9: сем. | P9: сем. | Q9: сем. | R9: сем. | S9: сем. | T9: сем.
M10: 17 | N10: 22 | O10: 17 | P10: 23 | Q10: 16 | R10: 24 | S10: 16 | T10: 13
M11: 17 | N11: 22 | O11: 15 | P11: 21 | Q11: 11 | R11: 16 | S11: 10 | T11: 8
M12: нед | N12: нед | O12: нед | P12: нед | Q12: нед | R12: нед | S12: нед | T12: нед
A13: 1 | B13: 2 | C13: 3 | D13: 4 | E13: 5 | F13: 6 | G13: 7 | H13: 8 | I13: 9 | J13: 10 | K13: 11 | L13: 12 | M13: 13 | N13: 14 | O13: 15 | P13: 16 | Q13: 17 | R13: 18 | S13: 19 | T13: 20
A14: О.00 | B14: Общеобразовательный цикл | H14: =SUM(H15:H26) -> 1404 | M14: =SUM(M15:M26) -> 612 | N14: =SUM(N15:N26) -> 792 | O14: =SUM(O15:O66)/O10 -> 128.7058824 | P14: 140.5217391 | Q14: 115.875 | R14: 120.75 | S14: 119 | T14: 109.5384615
A15: ОДБ.01 | B15: Русский язык | E15: 2 | H15: =SUM(M15:R15) -> 78 | M15: 34 | N15: 44
A16: ОДБ.02 | B16: Литература | D16: 2 | H16: =SUM(M16:R16) -> 117 | M16: 51 | N16: 66
A17: ОДБ.03 | B17: Иностранный язык | D17: 2 | H17: 117 | M17: 51 | N17: 66
A18: ОДБ.04 | B18: История | D18: 2 | H18: 78 | M18: 34 | N18: 44
A19: ОДБ.05 | B19: Обществознание | D19: 2 | H19: 78 | M19: 34 | N19: 44
A20: ОДБ.06 | B20: Химия | D20: 2 | H20: 78 | M20: 34 | N20: 44
A21: ОДБ.07 | B21: Биология | D21: 2 | H21: 78 | M21: 34 | N21: 44
A22: ОДБ.08 | B22: Основы безопасности жизнедеятельности | D22: 2 | H22: 78 | M22: 34 | N22: 44
A23: ОДБ.09 | B23: Физическая культура | D23: 2 | H23: 117 | M23: 51 | N23: 66
A24: ОДП.01 | B24: Математика | E24: 2 | H24: 234 | M24: 102 | N24: 132
A25: ОДП.02 | B25: Физика | E25: 2 | H25: 195 | M25: 85 | N25: 110
A26: ОДП.03 | B26: Информатика и ИКТ | D26: 2 | H26: 156 | M26: 68 | N26: 88
B27: Всего по циклам ОПОП | F27: =F28+F33+F36 -> 4374 | G27: =G28+G33+G36 -> 1458 | H27: =H28+H33+H36 -> 2916 | I27: =I28+I33+I36 -> 1429 | J27: =J28+J33+J36 -> 1487 | K27: 80 | L27: =L48 -> 1008 | O27: =O28+O33+O36 -> 540 | P27: 756 | Q27: 396 | R27: 576 | S27: 360 | T27: 288
A28: ОГСЭ.00 | B28: Общий гуманитарный и социально-экономический цикл | F28: =SUM(F29:F32) -> 630 | G28: =SUM(G29:G32) -> 210 | H28: 420 | I28: =SUM(I29:I32) -> 98 | J28: =SUM(J29:J32) -> 322 | O28: =SUM(O29:O32) -> 156 | P28: =SUM(P29:P32) -> 84 | Q28: 44 | R28: 64 | S28: 40 | T28: 32
A29: ОГСЭ.01 | B29: Основы философии | D29: 3 | F29: 54 | G29: =F29-H29 -> 6 | H29: =SUM(O29:T29) -> 48 | I29: 48 | O29: 48
A30: ОГСЭ.02 | B30: История | D30: 3 | F30: 54 | G30: 6 | H30: =SUM(O30:T30) -> 48 | I30: 48 | O30: 48
A31: ОГСЭ.03 | B31: Иностранный язык | D31: 8 | F31: 198 | G31: 36 | H31: =SUM(O31:T31) -> 162 | J31: 162 | O31: 30 | P31: 42 | Q31: 22 | R31: 32 | S31: 20 | T31: 16
A32: ОГСЭ.04 | B32: Физическая культура | D32: 3,4,5,6,7,8 | F32: 324 | G32: 162 | H32: =SUM(O32:T32) -> 162 | I32: 2 | J32: 160 | O32: 30 | P32: 42 | Q32: 22 | R32: 32 | S32: 20 | T32: 16
A33: ЕН.00 | B33: Математический и общий естественнонаучный цикл | F33: =SUM(F34:F35) -> 216 | G33: =SUM(G34:G35) -> 72 | H33: =SUM(H34:H35) -> 144 | I33: =SUM(I34:I35) -> 32 | J33: =SUM(J34:J35) -> 112 | O33: =SUM(O34:O35) -> 60 | P33: 38 | Q33: 46 | R33: 0 | S33: 0 | T33: 0
A34: ЕН.01 | B34: Математика | D34: 3 | F34: =ROUNDDOWN(H34*1.5,0) -> 90 | G34: =F34-H34 -> 30 | H34: =SUM(O34:T34) -> 60 | I34: 24 | J34: 36 | O34: 60
A35: ЕН.02 | B35: Информатика | D35: 5 | F35: 126 | G35: =F35-H35 -> 42 | H35: =SUM(O35:T35) -> 84 | I35: 8 | J35: 76 | P35: 38 | Q35: 46
A36: П.00 | B36: Профессиональный цикл | F36: =F37+F48 -> 3528 | G36: =G37+G48 -> 1176 | H36: =H37+H48 -> 2352 | I36: =I37+I48 -> 1299 | J36: =J37+J48 -> 1053 | K36: 20 | O36: =O37+O48 -> 324 | P36: 634 | Q36: 306 | R36: 512 | S36: 320 | T36: 256
A37: ОП.00 | B37: Общепрофессиональные дисциплины | F37: =SUM(F38:F47) -> 1447 | G37: =SUM(G38:G47) -> 487 | H37: =SUM(H38:H47) -> 960 | I37: =SUM(I38:I47) -> 578 | J37: =SUM(J38:J47) -> 382 | O37: =SUM(O38:O47) -> 152 | P37: 376 | Q37: 126 | R37: 142 | S37: 32 | T37: 132
A38: ОП.01 | B38: Инженерная графика | D38: 6 | F38: =ROUNDDOWN(H38*1.5,0) -> 180 | G38: =F38-H38 -> 60 | H38: =SUM(O38:T38) -> 120 | I38: 40 | J38: 80 | O38: 30 | P38: 90
A39: ОП.02 | B39: Техническая механика | D39: 6 | F39: 180 | G39: 60 | H39: 120 | I39: 80 | J39: 40 | O39: 30 | P39: 90
A40: ОП.03 | B40: Древесиноведение и материаловедение | E40: 5 | F40: 228 | G40: 76 | H40: 152 | I40: 92 | J40: 60 | O40: 40 | P40: 76 | Q40: 36
A41: ОП.04 | B41: Метрология, стандартизация и сертификация | D41: 6 | F41: 87 | G41: 29 | H41: 58 | I41: 38 | J41: 20 | R41: 58
A42: ОП.05 | B42: Электротехника и электроника | D42: 5 | F42: 180 | G42: 60 | H42: 120 | I42: 90 | J42: 30 | O42: 20 | P42: 52 | Q42: 48
A43: ОП.06 | B43: Гидротермическая обработка и консервирование древесины | D43: 8 | F43: 228 | G43: 76 | H43: 152 | I43: 102 | J43: 50 | R43: 52 | S43: 32 | T43: 68
A44: ОП.07 | B44: Правовое обеспечение профессиональной деятельности | C44: 8 | F44: 96 | G44: 32 | H44: =SUM(O44:V44) -> 64 | I44: 44 | J44: 20 | T44: 64
A45: ОП.08 | B45: Экономика организации | E45: 6 | F45: 110 | G45: 36 | H45: =SUM(O45:T45) -> 74 | I45: 50 | J45: 24 | K45: 20 | Q45: 42 | R45: 32
A46: ОП.09 | B46: Безопасность жизнедеятельности | D46: 4 | F46: 110 | G46: 42 | H46: =SUM(O46:V46) -> 68 | I46: 20 | J46: 48 | P46: 68
A47: ОП.10 | B47: Охрана труда | C47: 3 | F47: 48 | G47: 16 | H47: =SUM(O47:T47) -> 32 | I47: 22 | J47: 10 | O47: 32
A48: ПМ.00 | B48: Профессиональные модули | F48: =F49+F57+F62 -> 2081 | G48: =G49+G57+G62 -> 689 | H48: 1392 | I48: 721 | J48: 671 | K48: =K49+K57+K62 -> 60 | L48: =L49+L57+L62 -> 1008 | M48: =M49+M57+M62 -> 0 | N48: =N49+N57+N62 -> 0 | O48: =O49+O57+O62 -> 172 | P48: =P49+P57+P62 -> 258 | Q48: =Q49+Q57+Q62 -> 180 | R48: =R49+R57+R62 -> 370 | S48: =S49+S57+S62 -> 288 | T48: =T49+T57+T62 -> 124
A49: ПМ.01 | B49: Разработка и внедрение технологических процессов деревообрабатывающих производств | E49: 5(К) | F49: =SUM(F50:F54) -> 734 | G49: =SUM(G50:G54) -> 244 | H49: 490 | I49: 343 | J49: 147 | K49: 30 | L49: =SUM(L55:L56) -> 252 | O49: 172 | P49: 258 | Q49: 60 | R49: 0 | S49: 0 | T49: 0
A50: МДК.01.01 | B50: Лесопильное производство | E50: 4 | F50: =ROUNDDOWN(H50*1.5,0) -> 147 | G50: =F50-H50 -> 49 | H50: =SUM(O50:T50) -> 98 | I50: 66 | J50: 32 | O50: 60 | P50: 38
A51: МДК.01.02 | B51: Мебельное и столярно-строительное производство | D51: 5 | F51: 244 | G51: 81 | H51: =SUM(O51:T51) -> 163 | I51: 123 | J51: 40 | O51: 60 | P51: 76 | Q51: 27
A52: МДК.01.03 | B52: Фанерное и литное производство | C52: 4 | F52: 51 | G52: 17 | H52: =SUM(O52:T52) -> 34 | I52: 14 | J52: 20 | P52: 34
A53: МДК.01.04 | B53: Спичечное, тарное и другие деревообрабатывающие производства | C53: 4 | F53: 48 | G53: 16 | H53: =SUM(O53:T53) -> 32 | I53: 20 | J53: 12 | P53: 32
A54: МДК.01.05 | B54: Технологическое оборудование деревообрабатывающего производства | D54: 5 | F54: 244 | G54: 81 | H54: =SUM(O54:V54) -> 163 | I54: 120 | J54: 43 | O54: 52 | P54: 78 | Q54: 33
A55: УП.01 | B55: Учебная пратика | C55: 4 | F55: 216 | G55: 72 | H55: 144 | L55: =SUM(N55:U55) -> 144 | O55: 72 | P55: 72
A56: ПП.01 | B56: Производственная практика | C56: 5 | L56: =SUM(N56:U56) -> 108 | Q56: 108
A57: ПМ.02 | B57: Участие в организации производственной деятельности в рамках структурного подразделения деревообрабатывающего производства | E57: 8(К) | F57: =SUM(F58:F59) -> 303 | G57: =SUM(G58:G59) -> 101 | H57: 202 | I57: 142 | J57: 60 | K57: 30 | L57: =SUM(L60:L61) -> 288 | P57: 0 | Q57: 0 | R57: 0 | S57: 78 | T57: 124
A58: МДК.02.01 | B58: Управление структурным подразделением | E58: 8 | F58: =ROUNDDOWN(H58*1.5,0) -> 198 | G58: =F58-H58 -> 66 | H58: =SUM(O58:T58) -> 132 | I58: 102 | J58: 30 | S58: 46 | T58: 86
A59: МДК.02.02 | B59: Аналих производственно - хозяйственной деятельности структурного подразделения | D59: 8 | F59: 105 | G59: 35 | H59: =SUM(O59:T59) -> 70 | I59: 40 | J59: 30 | S59: 32 | T59: 38
A60: УП.02 | B60: Учебная пратика | C60: 7 | L60: =SUM(M60:U60) -> 72 | S60: 72
A61: ПП.02 | B61: Производственная практика | C61: 8 | L61: =SUM(M61:U61) -> 216 | S61: 36 | T61: 180
A62: ПМ.03 | B62: Выполнение работ по одной или нескольким профессиям рабочих, должностям служащих | E62: 7(К) | F62: =SUM(F63:F64) -> 1044 | G62: 344 | H62: =SUM(H63:H64) -> 700 | I62: =SUM(I63:I64) -> 236 | J62: 464 | L62: =L65+L66 -> 468 | O62: =O63+O64 -> 0 | P62: =P63+P64 -> 0 | Q62: 120 | R62: 370 | S62: 210 | T62: 0
A63: МДК.03.01 | B63: Станочник деревообрабатывающих станков | D63: 7 | F63: =ROUNDDOWN(H63*1.5,0) -> 579 | G63: =F63-H63 -> 193 | H63: =SUM(O63:T63) -> 386 | I63: 136 | J63: 250 | Q63: 60 | R63: 206 | S63: 120
A64: МДК.03.02 | B64: Станоник-распиловщик | D64: 7 | F64: 465 | G64: 151 | H64: =SUM(O64:T64) -> 314 | I64: 100 | J64: 214 | Q64: 60 | R64: 164 | S64: 90
A65: УП.03 | B65: Учебная практика | C65: 7 | L65: =SUM(M65:U65) -> 216 | Q65: 72 | R65: 108 | S65: 36
A66: ПП.03 | B66: Производственная практика | C66: 7 | L66: =SUM(M66:U66) -> 252 | R66: 180 | S66: 72
A67: Всего | F67: =SUM(G67+H67) -> 5778 | G67: =SUM(G36+G33+G28+G14) -> 1458 | H67: =SUM(H36+H33+H28+H14) -> 4320 | I67: =SUM(I36+I33+I28+I14) -> 1429 | J67: =SUM(J36+J33+J28+J14) -> 1487 | K67: 60 | L67: =L48 -> 1008 | M67: =SUM(M15:M66) -> 612 | N67: =SUM(N15:N66) -> 792 | O67: =O71+O73+O74 -> 612 | P67: =P71+P73+P74 -> 828 | Q67: 576 | R67: 864 | S67: 576 | T67: 468
A68: Кол-во часов в неделю | M68: =SUM(M15:M26)/M11 -> 36 | N68: =SUM(N15:N26)/N11 -> 36 | O68: =O67/O10 -> 36 | P68: 36 | Q68: 36 | R68: 36 | S68: 36 | T68: 36
A69: ПДП | B69: Преддипломная практика | T69: 144
A70: ГИА | B70: Государственная итоговая аттестация | T70: 216
A71: Консультации на учебную группу по 100 часов в год (всего 400 час.) | H71: Всего | I71: дисциплин и МДК | M71: =M67-M73-M74 -> 612 | N71: =N67-N73-N74 -> 792 | O71: =O27 -> 540 | P71: 756 | Q71: 396 | R71: 576 | S71: 360 | T71: 288
A73: Государственная (итоговая) аттестация 6 недель (216 час) | I73: учебной практики | O73: =O65+O60+O55 -> 72 | P73: =P65+P60+P55 -> 72 | Q73: 72 | R73: 108 | S73: 108 | T73: 0
A74: 1. Программа углубленной подготовки | I74: производст. практика/преддипломная практика | O74: =O66+O61+O56 -> 0 | P74: =P66+P61+P56 -> 0 | Q74: 108 | R74: 180 | S74: 108 | T74: 180
A75: 1.1. Дипломный проект (работа) | I75: экзаменов | M75: - | N75: 3 | O75: 0 | P75: 1 | Q75: 2 | R75: 1 | S75: 1 | T75: 1
A76: Выполнение дипломного проекта (работы) с 18.05 по 14.06 (всего 4 нед.) | I76: диф.зачетов | M76: - | N76: 8 | O76: 3 | P76: 1 | Q76: 4 | R76: 3 | S76: 2 | T76: 3
A77: Защита дипломного проекта (работы) с 15.06 по 28.04 (всего 2 нед.) | I77: зачетов | M77: - | O77: 1 | P77: 3 | Q77: 1 | R77: 0 | S77: 3 | T77: 2

Sheet Лист3 (hidden)
C1: 1 | D1: 5
A2: очная | C2: 2 | D2: 10 | E2: основного общего образования
A3: заочная | C3: 3 | E3: начального профессионального образования | J3: по программе базовой подготовки
A4: очно-заочная | C4: 4 | E4: среднего (полного) общего образования | J4: по программе углубленной подготовки
C5: 5
C6: 6
C7: 0 | J7: по специальности среднего профессионального образования
J8: по профессии начального профессионального образования

Sheet Календарный график
J2: Календарный график учебного процесса
B4: Курс | C4: Сентябрь | H4: Октябрь | L4: Ноябрь | P4: Декабрь | U4: Январь | Y4: Февраль | AC4: Март | AH4: Апрель | AL4: Май | AP4: Июнь | AU4: Июль | AY4: Август
C5: 1 | D5: 8 | E5: 15 | F5: 22 | G5: 29 | H5: 6 | I5: 13 | J5: 20 | K5: 27 | L5: 3 | M5: 10 | N5: 17 | O5: 24 | P5: 1 | Q5: 8 | R5: 15 | S5: 22 | T5: 29 | U5: 2 | V5: 9 | W5: 16 | X5: 23 | Y5: 2 | Z5: 9 | AA5: 16 | AB5: 23 | AC5: 2 | AD5: 9 | AE5: 16 | AF5: 23 | AG5: 30 | AH5: 6 | AI5: 13 | AJ5: 20 | AK5: 27 | AL5: 4 | AM5: 11 | AN5: 18 | AO5: 25 | AP5: 1 | AQ5: 8 | AR5: 15 | AS5: 22 | AT5: 29 | AU5: 6 | AV5: 13 | AW5: 20 | AX5: 27 | AY5: 3 | AZ5: 10 | BA5: 17 | BB5: 24
C6: 7 | D6: 14 | E6: 21 | F6: 28 | G6: 5 | H6: 12 | I6: 19 | J6: 26 | K6: 2 | L6: 9 | M6: 16 | N6: 23 | O6: 30 | P6: 7 | Q6: 14 | R6: 21 | S6: 28 | T6: 4 | U6: 8 | V6: 15 | W6: 22 | X6: 1 | Y6: 8 | Z6: 15 | AA6: 22 | AB6: 1 | AC6: 8 | AD6: 15 | AE6: 22 | AF6: 29 | AG6: 5 | AH6: 12 | AI6: 19 | AJ6: 26 | AK6: 3 | AL6: 19 | AM6: 17 | AN6: 24 | AO6: 31 | AP6: 7 | AQ6: 14 | AR6: 21 | AS6: 28 | AT6: 5 | AU6: 12 | AV6: 19 | AW6: 26 | AX6: 2 | AY6: 9 | AZ6: 16 | BA6: 23 | BB6: 31
B7: 1 | T7: - | U7: - | AR7: А | AS7: А | AT7: - | AU7: - | AV7: - | AW7: - | AX7: - | AY7: - | AZ7: - | BA7: - | BB7: -
B8: 2 | R8: ОУ | S8: ОУ | T8: - | U8: - | AQ8: А | AR8: ОУ | AS8: ОУ | AT8: - | AU8: - | AV8: - | AW8: - | AX8: - | AY8: - | AZ8: - | BA8: - | BB8: -
B9: 3 | K9: ОУ | L9: ОУ | P9: ПП | Q9: ПП | R9: ПП | S9: А | T9: - | U9: - | AL9: ОУ | AM9: ОУ | AN9: ОУ | AO9: А | AP9: ПП | AQ9: ПП | AR9: ПП | AS9: ПП | AT9: ПП | AU9: - | AV9: - | AW9: - | AX9: - | AY9: - | AZ9: - | BA9: - | BB9: -
B10: 4 | I10: ОУ | J10: ОУ | K10: ОУ | P10: ПП | Q10: ПП | R10: ПП | S10: А | T10: - | U10: - | AB10: ПП | AC10: ПП | AD10: ПП | AE10: ПП | AF10: ПП | AI10: А | AJ10: ПД | AK10: ПД | AL10: ПД | AM10: ПД | AN10: ИА | AO10: ИА | AP10: ИА | AQ10: ИА | AR10: ИА | AS10: ИА
C11: 1 | D11: 2 | E11: 3 | F11: 4 | G11: 5 | H11: 6 | I11: 7 | J11: 8 | K11: 9 | L11: 10 | M11: 11 | N11: 12 | O11: 13 | P11: 14 | Q11: 15 | R11: 16 | S11: 17 | T11: 18 | U11: 19 | V11: 20 | W11: 21 | X11: 22 | Y11: 23 | Z11: 24 | AA11: 25 | AB11: 26 | AC11: 27 | AD11: 28 | AE11: 29 | AF11: 30 | AG11: 31 | AH11: 32 | AI11: 33 | AJ11: 34 | AK11: 35 | AL11: 36 | AM11: 37 | AN11: 38 | AO11: 39 | AP11: 40 | AQ11: 41 | AR11: 42 | AS11: 43 | AT11: 44 | AU11: 45 | AV11: 46 | AW11: 47 | AX11: 48 | AY11: 49 | AZ11: 50 | BA11: 51 | BB11: 52
D15: Условные обозначения
G17: - | H17: Теоретическое обучение | R17: ПП | T17: - | U17: Производственная практика | AD17: - | AF17: - | AG17: Каникулы | AN17: ПД | AP17: - | AQ17: Преддипломная практика
E19: ОУ | G19: - | H19: Учебная практика | R19: А | T19: - | U19: Промежуточная атестация | AD19: ИА | AF19: - | AG19: Итоговая аттестация
AK25: ,
AK39: ,

Sheet Перечень кабинетов
B1: Перечень кабинетов, лабораторий, мастерских и др. для подготовки
B2: по специальности СПО
A3: № | B3: Наименование
B4: Кабинеты:
A5: 1 | B5: социально-экономических дисциплин;
A6: 2 | B6: иностранных языков;
A7: 3 | B7: математики;
A8: 4 | B8: информатики;
A9: 5 | B9: автоматизированных информационных систем;
A10: 6 | B10: инженерной графики;
A11: 7 | B11: технической механики;
A12: 8 | B12: древесиноведения и материаловедения;
A13: 9 | B13: метрологии, стандартизации и сертификации;
A14: 10 | B14: электротехники и электроники;
A15: 11 | B15: правового обеспечения профессиональной деятельности;
A16: 12 | B16: экономики организации;
A17: 13 | B17: безопасности жизнедеятельности;
A18: 14 | B18: гидротермической обработки и консервирования древесины;
A19: 15 | B19: лесопильного производства;
A20: 16 | B20: мебельного и столярно-строительного производств;
A21: 17 | B21: фанерного, плитного и других деревообрабатывающих производств.
B22: Лаборатории:
A23: 1 | B23: технической механики;
A24: 2 | B24: древесиноведения и материаловедения;
A25: 3 | B25: информационных технологий в профессиональной деятельности
A26: 4 | B26: электротехники, электроники и автоматизации;
A27: 5 | B27: режущего инструмента деревообрабатывающего производства;
A28: 6 | B28: технологического оборудования деревообрабатывающего производства.
B29: Мастеские:
A30: 1 | B30: деревообработки.
B31: Спортивный комплекс:
A32: 1 | B32: спортивный зал;
A33: 2 | B33: спортивная площадка;
A34: 3 | B34: стрелковый тир (в любой модификации, включая электронный) или место для стрельбы
B35: Залы:
A36: 1 | B36: библиотека, читальный зал с выходом в сеть Интернет;
A37: 2 | B37: актовый зал
